fUST/lending_fUST_20250726
["ID","MTS","AMOUNT","RATE_DAILY","PERIOD"]
[375088835,1753523448869,-460.0,0.00020547,2]
[375088836,1753523448879,-460.0,0.00020547,2]
[375088837,1753523448888,-460.0,0.00020547,2]
[375088838,1753523448898,-460.0,0.00020547,2]
[375088839,1753523448907,-460.0,0.00020547,2]
[375088840,1753523448917,-883.45,0.00020547,2]
[375088841,1753523448927,-573.82,0.00020547,2]
[375088842,1753523448937,-460.0,0.00020547,2]
[375088843,1753523448946,-485.03,0.00020547,2]
[375088844,1753523448955,-555.83,0.00020547,2]
[375088845,1753523448965,-539.81,0.00020547,2]
[375088846,1753523448975,-460.0,0.00020547,2]
[375088847,1753523448984,-1686.37,0.00020547,2]
[375088848,1753523448994,-550.62550737,0.00020547,2]
[375088849,1753523449003,-891.86,0.00020547,2]
[375088850,1753523449013,-460.0,0.00020547,2]
[375088851,1753523449022,-7178.19,0.00020547,2]
[375088852,1753523449032,-5459.94,0.00020547,2]
[375088853,1753523449042,-3434.32,0.00020547,2]
[375088854,1753523449052,-460.0,0.00020547,2]
[375088855,1753523449062,-2148.47,0.00020547,2]
[375088856,1753523449072,-460.0,0.00020547,2]
[375088857,1753523449082,-460.0,0.00020547,2]
[375088858,1753523449092,-425.74184596,0.00020547,2]
[375088859,1753523449101,-763.83,0.00020547,2]
[375088860,1753523449111,-460.0,0.00020547,2]
[375088861,1753523449122,-3057.99,0.00020547,2]
[375088862,1753523449132,-460.0,0.00020547,2]
[375088863,1753523449143,-460.0,0.00020547,2]
[375088864,1753523449152,-1106.1,0.00020547,2]
[375088865,1753523449162,-460.0,0.00020547,2]
[375088866,1753523449172,-460.0,0.00020547,2]
[375088867,1753523449182,-460.0,0.00020547,2]
[375088868,1753523449191,-2732.92,0.00020547,2]
[375088869,1753523449201,-1074.16,0.00020547,2]
[375088870,1753523449210,-4049.35,0.00020547,2]
[375088871,1753523449219,-460.0,0.00020547,2]
[375088872,1753523449229,-593.69,0.00020547,2]
[375088873,1753523449238,-460.0,0.00020547,2]
[375088874,1753523449248,-991.35,0.00020547,2]
[375088875,1753523449257,-460.0,0.00020547,2]
[375088876,1753523449267,-3690.7,0.00020547,2]
[375088877,1753523449276,-724.95,0.00020547,2]
[375088878,1753523449286,-890.03,0.00020547,2]
[375088879,1753523449295,-674.37,0.00020547,2]
[375088880,1753523449309,-460.0,0.00020547,2]
[375088881,1753523449319,-460.0,0.00020547,2]
[375088882,1753523449328,-918.24,0.00020547,2]
[375088883,1753523449337,-991.04,0.00020547,2]
[375088884,1753523449347,-835.25,0.00020547,2]
[375088885,1753523449356,-460.0,0.00020547,2]
[375088886,1753523449365,-595.26246521,0.00020547,2]
[375088887,1753523449374,-615.89,0.00020547,2]
[375088888,1753523449384,-1741.09,0.00020547,2]
[375088889,1753523449393,-3801.73,0.00020547,2]
[375088890,1753523449402,-1933.29,0.00020547,2]
[375088891,1753523449411,-2486.14,0.00020547,2]
[375088892,1753523449421,-573.35,0.00020547,2]
[375088893,1753523449433,-726.62,0.00020547,2]
[375088894,1753523449442,-460.0,0.00020547,2]
[375088895,1753523449453,-460.0,0.00020547,2]
[375088896,1753523449463,-739.41,0.00020547,2]
[375088897,1753523449472,-460.0,0.00020547,2]
[375088898,1753523449488,-460.0,0.00020547,2]
[375088899,1753523449497,-1145.29,0.00020547,2]
[375088900,1753523449508,-460.0,0.00020547,2]
[375088901,1753523449517,-751.64,0.00020547,2]
[375088902,1753523449527,-460.0,0.00020547,2]
[375088903,1753523449537,-460.0,0.00020547,2]
[375088904,1753523449546,-460.0,0.00020547,2]
[375088905,1753523449556,-3362.76,0.00020547,2]
[375088906,1753523449566,-2336.16,0.00020547,2]
[375088907,1753523449575,-460.0,0.00020547,2]
[375088908,1753523449584,-943.5,0.00020547,2]
[375088909,1753523449594,-460.0,0.00020547,2]
[375088910,1753523449603,-460.0,0.00020547,2]
[375088911,1753523449613,-1129.76,0.00020547,2]
[375088912,1753523449622,-1082.57,0.00020547,2]
[375088913,1753523449632,-538.78,0.00020547,2]
[375088914,1753523449642,-568.86545722,0.00020547,2]
[375088915,1753523449652,-1367.32,0.00020547,2]
[375088916,1753523449662,-460.0,0.00020547,2]
[375088917,1753523449671,-488.22,0.00020547,2]
[375088918,1753523449681,-1532.47,0.00020547,2]
[375088919,1753523449690,-862.86,0.00020547,2]
[375088920,1753523449700,-595.67,0.00020547,2]
[375088921,1753523449710,-11379.61,0.00020547,2]
[375088922,1753523449719,-665.0,0.00020547,2]
[375088923,1753523449729,-151.0,0.00020548,2]
[375088924,1753523449738,-151.0,0.00020548,2]
[375088925,1753523449748,-596.0,0.00020548,2]
[375088926,1753523449760,-151.0,0.00020548,2]
[375088927,1753523449770,-151.0,0.00020548,2]
[375088928,1753523449779,-151.0,0.00020548,2]
[375088929,1753523449789,-528.0,0.00020548,2]
[375088930,1753523449799,-319.971473,0.00020548,2]
[375088931,1753523449808,-577.8715194,0.00020548,2]
[375088932,1753523449818,-577.8715194,0.00020548,2]
[375088933,1753523449828,-1172.0,0.00020607,2]
[375088934,1753523449838,-168.0,0.00020685,2]
[375088935,1753523449848,-151.0,0.000207,4]
[375088936,1753523449857,-151.0,0.000207,4]
[375088937,1753523449867,-420.0,0.00020792,2]
[375088938,1753523449877,-577.8715194,0.00020795,2]
[375088939,1753523449887,-577.8715194,0.00020795,2]
[375088940,1753523449896,-577.8715194,0.00020795,2]
[375088941,1753523449905,-5888.0,0.00020809,2]
[375088942,1753523449914,-231.28369723,0.00020809,2]
[375088943,1753523449924,-444.54,0.00020812,3]
[375088944,1753523449934,-151.0,0.00020821,2]
[375088945,1753523449943,-151.0,0.00020821,2]
[375088946,1753523449953,-460.0,0.00020821,2]
[375088947,1753523449962,-470.57,0.00020821,2]
[375088948,1753523449972,-460.0,0.00020821,2]
[375088949,1753523449981,-460.0,0.00020821,2]
[375088950,1753523449990,-460.0,0.00020821,2]
[375088951,1753523450000,-460.0,0.00020821,2]
[375088952,1753523450011,-714.53,0.00020821,2]
[375088953,1753523450020,-491.19,0.00020821,2]
[375088954,1753523450031,-460.0,0.00020821,2]
[375088955,1753523450041,-594.41,0.00020821,2]
[375088956,1753523450050,-606.54,0.00020821,2]
[375088957,1753523450060,-685.85,0.00020821,2]
[375088958,1753523450070,-460.0,0.00020821,2]
[375088959,1753523450080,-460.0,0.00020821,2]
[375088960,1753523450090,-361.31125099,0.00020821,2]
[375088961,1753523450100,-371.12574192,0.00020821,2]
[375088962,1753523450253,-162.79425808,0.00020821,2]
[375088963,1753523450263,-460.0,0.00020821,2]
[375088964,1753523450273,-460.0,0.00020821,2]
[375088965,1753523450283,-48.14053621,0.00020821,2]
[375088966,1753523450691,-187.4604714,0.00019626,2]
[375088967,1753523450702,-2935.74,0.00020547,2]
[375088968,1753523450712,-1059.80946379,0.00020821,2]
[375088969,1753523450722,-460.0,0.00020821,2]
[375088970,1753523450732,-938.81,0.00020821,2]
[375088971,1753523450742,-460.0,0.00020821,2]
[375088972,1753523450752,-460.0,0.00020821,2]
[375088973,1753523450761,-460.0,0.00020821,2]
[375088974,1753523450770,-599.24,0.00020821,2]
[375088975,1753523450780,-460.0,0.00020821,2]
[375088976,1753523450789,-460.0,0.00020821,2]
[375088977,1753523450799,-460.0,0.00020821,2]
[375088978,1753523450810,-460.0,0.00020821,2]
[375088979,1753523450819,-460.0,0.00020821,2]
[375088980,1753523450829,-460.0,0.00020821,2]
[375088981,1753523450838,-460.0,0.00020821,2]
[375088982,1753523450847,-883.45,0.00020821,2]
[375088983,1753523450857,-573.82,0.00020821,2]
[375088984,1753523450866,-460.0,0.00020821,2]
[375088985,1753523450876,-485.03,0.00020821,2]
[375088986,1753523450886,-539.81,0.00020821,2]
[375088987,1753523450895,-555.83,0.00020821,2]
[375088988,1753523450904,-9.96729569,0.00020821,2]
[375088989,1753523451234,-460.0,0.00019178,2]
[375088990,1753523451244,-4018.57129629,0.00019415,2]
[375088991,1753523451254,-151.0,0.00019452,2]
[375088992,1753523451264,-187.4604714,0.000199,2]
[375088993,1753523451274,-187.4604714,0.00020173,2]
[375088994,1753523451283,-450.03270431,0.00020821,2]
[375088995,1753523451292,-891.86,0.00020821,2]
[375088996,1753523451301,-460.0,0.00020821,2]
[375088997,1753523451311,-7178.19,0.00020821,2]
[375088998,1753523451321,-5459.94,0.00020821,2]
[375088999,1753523451330,-2538.62726626,0.00020821,2]
[375089000,1753523451646,-528.13436242,0.0002,2]
[375089001,1753523451657,-3.68864639,0.0002,2]
[375089002,1753523451667,-187.4604714,0.00020447,2]
[375089003,1753523451677,-460.0,0.00020821,2]
[375089004,1753523451687,-2148.47,0.00020821,2]
[375089005,1753523451698,-460.0,0.00020821,2]
[375089006,1753523451708,-763.83,0.00020821,2]
[375089007,1753523451718,-2179.93200412,0.00020821,2]
[375089011,1753523697404,200.0,0.00026019,120]
[375089018,1753524217799,175.4018,0.00013699,2]
[375089021,1753524348092,-150.0,0.000189,2]
[375089022,1753524348113,-263.50223638,0.00019078,2]
[375089023,1753524348134,-223.0315306,0.00019166,2]
[375089024,1753524348155,-300.0,0.00019177,2]
[375089025,1753524348175,-460.0,0.00019178,2]
[375089027,1753524348196,-460.0,0.00019178,2]
[375089028,1753524348217,-460.0,0.00019178,2]
[375089029,1753524348239,-460.0,0.00019178,2]
[375089030,1753524348259,-460.0,0.00019178,2]
[375089031,1753524348280,-460.0,0.00019178,2]
[375089032,1753524348300,-460.0,0.00019178,2]
[375089033,1753524348320,-460.0,0.00019178,2]
[375089034,1753524348342,-460.0,0.00019178,2]
[375089035,1753524348362,-460.0,0.00019178,2]
[375089036,1753524348382,-460.0,0.00019178,2]
[375089037,1753524348403,-460.0,0.00019178,2]
[375089038,1753524348423,-460.0,0.00019178,2]
[375089039,1753524348443,-460.0,0.00019178,2]
[375089040,1753524348463,-340.59825927,0.00019178,2]
[375089041,1753524348485,-460.0,0.00019178,2]
[375089042,1753524348505,-626.94853418,0.00019178,2]
[375089043,1753524348527,-460.0,0.00019178,2]
[375089044,1753524348547,-243.27922405,0.00019178,2]
[375089045,1753524348568,-460.0,0.00019178,2]
[375089046,1753524348590,-460.0,0.00019178,2]
[375089047,1753524348611,-460.0,0.00019178,2]
[375089048,1753524348631,-460.0,0.00019178,2]
[375089049,1753524348652,-460.0,0.00019178,2]
[375089050,1753524348672,-429.13335672,0.00019178,2]
[375089051,1753524348692,-460.0,0.00019178,2]
[375089052,1753524348713,-460.0,0.00019178,2]
[375089053,1753524348734,-494.83,0.00019178,2]
[375089054,1753524348755,-460.0,0.00019178,2]
[375089055,1753524348776,-168.29699378,0.00019178,2]
[375089056,1753524348797,-460.0,0.00019178,2]
[375089057,1753524348818,-460.0,0.00019178,2]
[375089058,1753524348840,-460.0,0.00019178,2]
[375089059,1753524348861,-460.0,0.00019178,2]
[375089060,1753524348883,-460.0,0.00019178,2]
[375089061,1753524348904,-460.0,0.00019178,2]
[375089062,1753524348925,-460.0,0.00019178,2]
[375089063,1753524348945,-460.0,0.00019178,2]
[375089064,1753524348966,-460.0,0.00019178,2]
[375089065,1753524348987,-752.24,0.00019178,2]
[375089066,1753524349007,-460.0,0.00019178,2]
[375089067,1753524349028,-460.0,0.00019178,2]
[375089068,1753524349048,-532.99586021,0.00019178,2]
[375089069,1753524349070,-460.0,0.00019178,2]
[375089070,1753524349091,-460.0,0.00019178,2]
[375089071,1753524349111,-460.0,0.00019178,2]
[375089072,1753524349132,-460.2192266,0.00019178,2]
[375089073,1753524349152,-490.99,0.00019178,2]
[375089074,1753524349172,-460.0,0.00019178,2]
[375089075,1753524349193,-460.0,0.00019178,2]
[375089076,1753524349214,-460.0,0.00019178,2]
[375089077,1753524349235,-460.0,0.00019178,2]
[375089078,1753524349255,-460.0,0.00019178,2]
[375089079,1753524349277,-460.0,0.00019178,2]
[375089080,1753524349299,-460.0,0.00019178,2]
[375089081,1753524349453,-460.0,0.00019178,2]
[375089082,1753524349475,-710.46,0.00019178,2]
[375089083,1753524349496,-597.52,0.00019178,2]
[375089084,1753524349517,-240.6657025,0.00019178,2]
[375089085,1753524349537,-460.0,0.00019178,2]
[375089086,1753524349558,-470.73,0.00019178,2]
[375089087,1753524349583,-460.0,0.00019178,2]
[375089088,1753524349605,-695.61,0.00019178,2]
[375089089,1753524349626,-460.0,0.00019178,2]
[375089090,1753524349647,-460.0,0.00019178,2]
[375089091,1753524349668,-569.79748834,0.00019178,2]
[375089092,1753524349690,-460.0,0.00019178,2]
[375089093,1753524349710,-540.42054471,0.00019178,2]
[375089094,1753524349730,-460.0,0.00019178,2]
[375089095,1753524349751,-460.0,0.00019178,2]
[375089096,1753524349771,-460.0,0.00019178,2]
[375089097,1753524349792,-460.0,0.00019178,2]
[375089098,1753524349815,-460.0,0.00019178,2]
[375089099,1753524349837,-460.0,0.00019178,2]
[375089100,1753524349858,-460.0,0.00019178,2]
[375089101,1753524349878,-460.0,0.00019178,2]
[375089102,1753524349901,-460.0,0.00019178,2]
[375089103,1753524349922,-460.0,0.00019178,2]
[375089104,1753524349943,-493.48910538,0.00019178,2]
[375089105,1753524349964,-460.0,0.00019178,2]
[375089106,1753524349986,-460.0,0.00019178,2]
[375089107,1753524350006,-460.0,0.00019178,2]
[375089108,1753524350027,-460.0,0.00019178,2]
[375089109,1753524350048,-581.27,0.00019178,2]
[375089110,1753524350070,-2546.27,0.00019178,2]
[375089111,1753524350093,-467.88,0.00019178,2]
[375089112,1753524350114,-460.0,0.00019178,2]
[375089113,1753524350135,-460.0,0.00019178,2]
[375089114,1753524350156,-838.56,0.00019178,2]
[375089115,1753524350178,-524.05,0.00019178,2]
[375089116,1753524350199,-854.7,0.00019178,2]
[375089117,1753524350218,-460.0,0.00019178,2]
[375089118,1753524350238,-1015.62,0.00019178,2]
[375089119,1753524350258,-879.74,0.00019178,2]
[375089120,1753524350280,-1060.01,0.00019178,2]
[375089121,1753524350303,-4040.52626268,0.00019178,2]
[375089176,1753524632590,-302.75782099,0.00019082,2]
[375089178,1753524632599,-460.0,0.00019178,2]
[375089180,1753524632609,-460.0,0.00019178,2]
[375089182,1753524632619,-347.01794126,0.00019178,2]
[375089183,1753524632629,-236.09423775,0.00019178,2]
[375089287,1753524638225,-41.56819639,0.00019178,2]
[375089288,1753524638235,-460.0,0.00019178,2]
[375089290,1753524638245,-460.0,0.00019178,2]
[375089291,1753524638255,-460.0,0.00019178,2]
[375089292,1753524638264,-460.0,0.00019178,2]
[375089293,1753524638273,-460.0,0.00019178,2]
[375089294,1753524638283,-887.6,0.00019178,2]
[375089295,1753524638292,-460.0,0.00019178,2]
[375089296,1753524638302,-460.0,0.00019178,2]
[375089298,1753524638311,-460.0,0.00019178,2]
[375089300,1753524638321,-460.0,0.00019178,2]
[375089302,1753524638330,-460.0,0.00019178,2]
[375089303,1753524638339,-460.0,0.00019178,2]
[375089304,1753524638349,-460.0,0.00019178,2]
[375089305,1753524638359,-210.006976,0.00019178,2]
[375089306,1753524638369,-590.67,0.00019178,2]
[375089307,1753524638379,-460.0,0.00019178,2]
[375089308,1753524638389,-460.0,0.00019178,2]
[375089309,1753524638398,-460.0,0.00019178,2]
[375089310,1753524638407,-460.0,0.00019178,2]
[375089311,1753524638417,-549.3,0.00019178,2]
[375089312,1753524638426,-460.0,0.00019178,2]
[375089313,1753524638435,-460.0,0.00019178,2]
[375089314,1753524638444,-460.0,0.00019178,2]
[375089315,1753524638454,-460.0,0.00019178,2]
[375089316,1753524638463,-460.0,0.00019178,2]
[375089317,1753524638472,-460.0,0.00019178,2]
[375089318,1753524638482,-460.0,0.00019178,2]
[375089319,1753524638491,-867.33,0.00019178,2]
[375089320,1753524638501,-460.0,0.00019178,2]
[375089321,1753524638510,-591.48669691,0.00019178,2]
[375089322,1753524638519,-460.0,0.00019178,2]
[375089323,1753524638528,-562.83,0.00019178,2]
[375089324,1753524638538,-460.0,0.00019178,2]
[375089325,1753524638547,-465.80960585,0.00019178,2]
[375089326,1753524638557,-461.46370445,0.00019178,2]
[375089327,1753524638566,-460.0,0.00019178,2]
[375089328,1753524638576,-462.45382263,0.00019178,2]
[375089329,1753524638587,-460.82411049,0.00019178,2]
[375089330,1753524638596,-460.0,0.00019178,2]
[375089331,1753524638606,-462.92361912,0.00019178,2]
[375089332,1753524638616,-460.0,0.00019178,2]
[375089333,1753524638626,-460.0,0.00019178,2]
[375089334,1753524638635,-460.0,0.00019178,2]
[375089335,1753524638644,-460.0,0.00019178,2]
[375089336,1753524638654,-819.09,0.00019178,2]
[375089337,1753524638663,-516.33,0.00019178,2]
[375089338,1753524638673,-460.0,0.00019178,2]
[375089339,1753524638682,-460.0,0.00019178,2]
[375089340,1753524638692,-460.0,0.00019178,2]
[375089341,1753524638702,-474.21,0.00019178,2]
[375089342,1753524638711,-460.81729209,0.00019178,2]
[375089343,1753524638722,-460.0,0.00019178,2]
[375089344,1753524638731,-460.0,0.00019178,2]
[375089345,1753524638740,-460.0,0.00019178,2]
[375089346,1753524638751,-460.0,0.00019178,2]
[375089347,1753524638761,-3417.64,0.00019178,2]
[375089348,1753524638770,-460.0,0.00019178,2]
[375089349,1753524638780,-460.0,0.00019178,2]
[375089350,1753524638790,-467.56894109,0.00019178,2]
[375089351,1753524638801,-460.0,0.00019178,2]
[375089352,1753524638811,-3106.73,0.00019178,2]
[375089353,1753524638819,-460.0,0.00019178,2]
[375089354,1753524638829,-460.0,0.00019178,2]
[375089355,1753524638838,-460.0,0.00019178,2]
[375089356,1753524638847,-2752.09,0.00019178,2]
[375089357,1753524638857,-460.0,0.00019178,2]
[375089358,1753524638867,-1103.46,0.00019178,2]
[375089359,1753524638877,-319.8382177,0.00019178,2]
[375089360,1753524638886,-314.15686143,0.00019178,2]
[375089361,1753524638896,-460.0,0.00019178,2]
[375089362,1753524638905,-460.0,0.00019178,2]
[375089363,1753524638914,-2082.92,0.00019178,2]
[375089364,1753524638923,-460.0,0.00019178,2]
[375089365,1753524638933,-720.9,0.00019178,2]
[375089366,1753524638942,-460.0,0.00019178,2]
[375089367,1753524638952,-7171.72,0.00019178,2]
[375089368,1753524638962,-460.0,0.00019178,2]
[375089369,1753524638978,-460.0,0.00019178,2]
[375089370,1753524638987,-460.0,0.00019178,2]
[375089371,1753524638996,-460.0,0.00019178,2]
[375089372,1753524639007,-460.0,0.00019178,2]
[375089373,1753524639019,-1007.54,0.00019178,2]
[375089374,1753524639029,-460.0,0.00019178,2]
[375089375,1753524639038,-719.35,0.00019178,2]
[375089376,1753524639051,-2022.73,0.00019178,2]
[375089377,1753524639060,-852.95,0.00019178,2]
[375089378,1753524639070,-460.0,0.00019178,2]
[375089379,1753524639079,-1007.24,0.00019178,2]
[375089380,1753524639088,-460.0,0.00019178,2]
[375089381,1753524639097,-609.39,0.00019178,2]
[375089382,1753524639107,-879.98,0.00019178,2]
[375089383,1753524639116,-835.25,0.00019178,2]
[375089384,1753524639125,-4064.27,0.00019178,2]
[375089385,1753524639134,-1719.9,0.00019178,2]
[375089386,1753524639144,-549.46,0.00019178,2]
[375089387,1753524639153,-460.0,0.00019178,2]
[375089388,1753524639162,-568.95,0.00019178,2]
[375089389,1753524639171,-3430.93073284,0.00019178,2]
[375089390,1753524639185,-612.09926716,0.00019178,2]
[375089391,1753524639195,-257.6296973,0.00019178,2]
[375089392,1753524639204,-460.0,0.00019178,2]
[375089393,1753524639213,-460.0,0.00019178,2]
[375089394,1753524639222,-460.0,0.00019178,2]
[375089395,1753524639231,-460.0,0.00019178,2]
[375089396,1753524639240,-460.0,0.00019178,2]
[375089397,1753524639250,-460.0,0.00019178,2]
[375089398,1753524639259,-739.41,0.00019178,2]
[375089399,1753524639269,-646.27,0.00019178,2]
[375089400,1753524639279,-3673.84,0.00019178,2]
[375089401,1753524639288,-460.0,0.00019178,2]
[375089402,1753524639297,-248.74475813,0.00019178,2]
[375089403,1753524639307,-696.35,0.00019178,2]
[375089404,1753524639316,-460.0,0.00019178,2]
[375089405,1753524639325,-460.0,0.00019178,2]
[375089406,1753524639335,-460.0,0.00019178,2]
[375089407,1753524639345,-460.0,0.00019178,2]
[375089408,1753524639354,-460.0,0.00019178,2]
[375089409,1753524639364,-460.0,0.00019178,2]
[375089410,1753524639373,-720.32,0.00019178,2]
[375089411,1753524639383,-923.36,0.00019178,2]
[375089412,1753524639393,-1367.32,0.00019178,2]
[375089413,1753524639402,-2470.83,0.00019178,2]
[375089414,1753524639412,-11541.5,0.00019178,2]
[375089415,1753524639422,-460.0,0.00019178,2]
[375089416,1753524639431,-1094.96,0.00019178,2]
[375089417,1753524639441,-2440.18,0.00019178,2]
[375089418,1753524639450,-3385.3,0.00019178,2]
[375089419,1753524639460,-460.0,0.00019178,2]
[375089420,1753524639470,-500.0,0.00019178,2]
[375089421,1753524639480,-500.0,0.00019178,2]
[375089422,1753524639490,-510.69,0.00019178,2]
[375089423,1753524639499,-460.0,0.00019178,2]
[375089424,1753524639509,-392.2186053,0.00019178,2]
[375089425,1753524639519,-590.02,0.00019178,2]
[375089426,1753524639528,-460.0,0.00019178,2]
[375089427,1753524639538,-1097.57,0.00019178,2]
[375089428,1753524639547,-460.0,0.00019178,2]
[375089429,1753524639557,-460.0,0.00019178,2]
[375089430,1753524639566,-1856.23,0.00019178,2]
[375089431,1753524639576,-469.88118433,0.00019178,2]
[375089432,1753524639586,-460.0,0.00019178,2]
[375089433,1753524639595,-460.0,0.00019178,2]
[375089434,1753524639605,-680.86,0.00019178,2]
[375089435,1753524639614,-3126.3,0.00019178,2]
[375089436,1753524639623,-684.17,0.00019178,2]
[375089437,1753524639633,-803.62,0.00019178,2]
[375089438,1753524639642,-460.0,0.00019178,2]
[375089439,1753524639652,-460.0,0.00019178,2]
[375089440,1753524639661,-460.0,0.00019178,2]
[375089441,1753524639670,-1101.85,0.00019178,2]
[375089442,1753524639680,-138.89952869,0.00019178,2]
[375089443,1753524639702,-876.94047131,0.00019178,2]
[375089444,1753524639711,-572.62,0.00019178,2]
[375089445,1753524639721,-1569.34,0.00019178,2]
[375089446,1753524639730,-460.0,0.00019178,2]
[375089447,1753524639740,-460.0,0.00019178,2]
[375089448,1753524639749,-5201.26,0.00019178,2]
[375089449,1753524639759,-500.0,0.00019178,2]
[375089450,1753524639768,-666.0,0.00019178,2]
[375089451,1753524639777,-543.087694,0.00019178,2]
[375089452,1753524639786,-302.75782099,0.00019273,2]
[375089453,1753524639797,-187.46047144,0.00019352,2]
[375089454,1753524639806,-285.87420029,0.000194,2]
[375089455,1753524639815,-223.0315306,0.0001944,2]
[375089456,1753524639825,-222.27,0.00019442,3]
[375089457,1753524639834,-666.83,0.00019442,3]
[375089458,1753524639844,-5000.0,0.00019442,2]
[375089459,1753524639853,-460.0,0.00019452,2]
[375089460,1753524639863,-460.0,0.00019452,2]
[375089461,1753524639872,-460.0,0.00019452,2]
[375089462,1753524639881,-460.0,0.00019452,2]
[375089464,1753524639891,-460.0,0.00019452,2]
[375089466,1753524639901,-460.0,0.00019452,2]
[375089467,1753524639910,-460.0,0.00019452,2]
[375089468,1753524639920,-460.0,0.00019452,2]
[375089469,1753524639929,-460.0,0.00019452,2]
[375089470,1753524639939,-460.0,0.00019452,2]
[375089471,1753524639949,-460.0,0.00019452,2]
[375089472,1753524639959,-460.0,0.00019452,2]
[375089473,1753524639972,-460.0,0.00019452,2]
[375089475,1753524639982,-490.99,0.00019452,2]
[375089476,1753524639991,-460.0,0.00019452,2]
[375089477,1753524640000,-460.0,0.00019452,2]
[375089478,1753524640010,-460.0,0.00019452,2]
[375089479,1753524640018,-460.0,0.00019452,2]
[375089480,1753524640028,-579.61259138,0.00019452,2]
[375089481,1753524640038,-695.61,0.00019452,2]
[375089482,1753524640047,-460.0,0.00019452,2]
[375089483,1753524640058,-460.0,0.00019452,2]
[375089484,1753524640067,-460.0,0.00019452,2]
[375089485,1753524640077,-460.0,0.00019452,2]
[375089486,1753524640086,-460.0,0.00019452,2]
[375089487,1753524640095,-460.0,0.00019452,2]
[375089488,1753524640106,-460.0,0.00019452,2]
[375089489,1753524640115,-460.0,0.00019452,2]
[375089490,1753524640124,-578.6035736,0.00019452,2]
[375089491,1753524640134,-581.27,0.00019452,2]
[375089492,1753524640143,-460.0,0.00019452,2]
[375089493,1753524640153,-524.05,0.00019452,2]
[375089494,1753524640163,-460.0,0.00019452,2]
[375089495,1753524640172,-1015.62,0.00019452,2]
[375089496,1753524640182,-879.74,0.00019452,2]
[375089497,1753524640191,-460.0,0.00019452,2]
[375089498,1753524640201,-460.0,0.00019452,2]
[375089499,1753524640211,-460.0,0.00019452,2]
[375089500,1753524640307,-460.0,0.00019452,2]
[375089501,1753524640317,-460.0,0.00019452,2]
[375089502,1753524640327,-887.6,0.00019452,2]
[375089503,1753524640337,-573.43251099,0.00019452,2]
[375089504,1753524640346,-460.0,0.00019452,2]
[375089505,1753524640356,-460.0,0.00019452,2]
[375089506,1753524640365,-511.73837375,0.00019452,2]
[375089507,1753524640375,-460.0,0.00019452,2]
[375089508,1753524640384,-460.0,0.00019452,2]
[375089509,1753524640394,-460.0,0.00019452,2]
[375089510,1753524640403,-460.0,0.00019452,2]
[375089511,1753524640413,-460.0,0.00019452,2]
[375089512,1753524640423,-549.3,0.00019452,2]
[375089513,1753524640431,-460.0,0.00019452,2]